bitfinex/quotes_SOLUSD_20241127
["timestamp","ask_amount","ask_price","bid_price","bid_amount"]
[1732686330008,20.0,229.89,229.85,8.70735958]
[1732686330403,20.0,229.89,229.86,4.3504]
[1732686330607,20.0,229.95,229.87,8.70735958]
[1732686330795,20.0,229.93,229.88,8.70735958]
[1732686330993,8.70735958,229.97,229.9,8.70735958]
[1732686331211,8.70735958,229.98,229.91,8.70735958]
[1732686331519,8.70735958,230.0,229.92,8.70735958]
[1732686331710,3.23030243,229.99,229.93,8.70735958]
[1732686331908,8.70735958,230.0,229.92,8.70735958]
[1732686332399,8.70735958,230.0,229.93,4.3491]
[1732686332722,20.0,229.96,229.93,4.3491]
[1732686333503,20.0,229.96,229.91,4.3495]
[1732686337113,20.0,229.96,229.92,8.70735958]
[1732686337326,20.0,229.96,229.86,10.8761]
[1732686337514,20.0,230.0,229.92,8.70735958]
[1732686337724,28.70735958,230.0,229.92,8.70735958]
[1732686339627,8.70735958,229.99,229.93,4.3491]
[1732686339828,20.0,229.96,229.93,4.3491]
[1732686340833,20.8697,229.96,229.77,72.50045142]
[1732686341007,20.0,229.85,229.79,8.70735958]
[1732686342330,20.0,229.85,229.8,4.3516]
[1732686342510,20.8698,229.92,229.8,4.3516]
[1732686342710,20.0,229.86,229.8,4.3516]
[1732686342911,20.0,229.86,229.81,8.70735958]
[1732686343328,20.0,229.86,229.8,4.3516]
[1732686343635,20.0,229.84,229.8,4.3516]
[1732686344020,8.70735958,229.87,229.8,4.3516]
[1732686344408,8.70735958,229.87,229.8,13.05895958]
[1732686344606,8.70735958,229.82,229.72,4.3531]
[1732686344831,20.0,229.79,229.72,4.3531]
[1732686345034,16.93418182,229.86,229.72,4.3531]
[1732686345035,16.93418182,229.86,229.73,8.70735958]
[1732686345338,8.70735958,229.82,229.73,8.70735958]
[1732686345522,8.70735958,229.82,229.74,4.3527]
[1732686345909,20.0,229.83,229.79,8.70735958]
[1732686346509,20.0,229.84,229.79,8.70735958]
[1732686347720,20.0,229.84,229.8,4.3516]
[1732686348737,8.70735958,229.85,229.8,4.3516]
[1732686349817,8.70735958,229.85,229.77,8.70735958]
[1732686350043,20.0,229.89,229.78,4.3519]
[1732686350253,8.70735958,229.87,229.79,8.70735958]
[1732686350424,20.0,229.84,229.79,8.70735958]
[1732686352335,20.0,229.84,229.8,4.3516]
[1732686353635,20.0,229.84,229.77,8.70735958]
[1732686353941,20.0,229.84,229.78,4.3519]
[1732686355332,8.70735958,229.87,229.79,8.70735958]
[1732686355839,8.70735958,229.88,229.79,8.70735958]
[1732686356144,14.3397099,229.97,229.81,8.70735958]
[1732686356323,8.70735958,229.87,229.78,15.2318]
[1732686356522,8.70735958,229.87,229.79,8.70735958]
[1732686356923,8.70735958,229.87,229.78,15.2318]
[1732686356924,8.70735958,229.87,229.78,23.93915958]
[1732686357233,8.70735958,229.83,229.76,4.3523]
[1732686358838,8.70735958,229.83,229.75,15.0821]
[1732686359023,8.70735958,229.79,229.75,19.4345]
[1732686360230,8.70735958,229.79,229.71,4.3533]
[1732686361639,8.70735958,229.8,229.72,8.70735958]
[1732686361818,20.0,229.77,229.72,8.70735958]
[1732686362823,8.70735958,229.8,229.72,8.70735958]
[1732686363019,3.81320985,229.87,229.74,8.70735958]
[1732686363235,8.70735958,229.83,229.76,8.70735958]
[1732686363529,8.70735958,229.83,229.77,4.3521]
[1732686365546,4.68320985,229.87,229.71,4.3533]
[1732686365547,8.70735958,229.81,229.71,4.3533]
[1732686365752,8.70735958,229.81,229.73,8.70735958]
[1732686367827,8.70735958,229.81,229.74,4.3527]
[1732686372023,8.70735958,229.83,229.75,8.70735958]
[1732686372242,20.0,229.8,229.75,8.70735958]
[1732686373249,20.0,229.8,229.7,15.3824]
[1732686373436,20.0,229.8,229.73,8.70735958]
[1732686374651,20.0,229.8,229.74,4.3527]
[1732686375537,8.70735958,229.79,229.74,4.3527]
[1732686375945,28.70735958,229.8,229.74,4.3527]
[1732686376147,28.70735958,229.8,229.73,4.3529]
[1732686376620,0.8701,229.84,229.73,4.3529]
[1732686376828,8.70735958,229.74,229.7,19.7358]
[1732686377032,8.70735958,229.71,229.65,30.3858]
[1732686377231,20.0,229.77,229.66,8.70735958]
[1732686377529,8.70735958,229.74,229.66,8.70735958]
[1732686378346,8.70735958,229.74,229.67,4.354]
[1732686378560,8.70735958,229.74,229.67,15.2391]
[1732686378729,8.70735958,229.76,229.68,8.70735958]
[1732686380126,8.70735958,229.76,229.69,4.3536]
[1732686381351,25.58929284,229.83,229.69,15.2378]
[1732686381646,8.70735958,229.77,229.69,15.2378]
[1732686382055,8.70735958,229.77,229.71,4.3533]
[1732686382936,8.70735958,229.75,229.71,4.3533]
[1732686383849,20.0,229.79,229.69,15.2378]
[1732686384029,11.94109902,229.78,229.7,8.70735958]
[1732686384229,8.70735958,229.78,229.7,8.70735958]
[1732686385050,3.2359852,229.77,229.7,8.70735958]
[1732686385261,3.2359852,229.77,229.71,4.3533]
[1732686385449,24.71909284,229.83,229.71,4.3533]
[1732686385755,8.70735958,229.79,229.71,4.3533]
[1732686385930,3.23971312,229.78,229.71,4.3533]
[1732686386330,8.70735958,229.79,229.71,4.3533]
[1732686386546,3.24065266,229.78,229.71,4.3533]
[1732686387260,2.09240055,229.78,229.71,4.3533]
[1732686387441,8.70735958,229.79,229.71,4.3533]
[1732686388938,8.70735958,229.79,229.7,8.70735958]
[1732686389341,13.89638347,229.79,229.7,8.70735958]
[1732686389550,8.70735958,229.79,229.7,8.70735958]
[1732686390057,8.70735958,229.79,229.72,16.4923]
[1732686391861,8.70735958,229.79,229.73,4.3529]
[1732686392440,5.19043744,229.81,229.73,4.3529]
[1732686392648,8.70735958,229.8,229.73,4.3529]
[1732686397170,8.70735958,229.78,229.73,4.3529]
[1732686398163,5.19043744,229.81,229.72,16.4923]
[1732686398164,20.0,229.75,229.72,16.4923]
[1732686398381,8.70735958,229.76,229.72,16.4923]
[1732686398746,20.0,229.77,229.72,20.8452]
[1732686398950,20.0,229.75,229.72,20.8452]
[1732686399478,3.2464585,229.74,229.72,20.8452]
[1732686400879,3.2464585,229.74,229.72,16.4923]
[1732686401780,3.2464585,229.74,229.71,4.3532]
[1732686402159,3.2464585,229.73,229.71,4.3532]
[1732686402363,20.0,229.75,229.71,4.3532]
[1732686402572,3.24833456,229.74,229.71,4.3532]
[1732686402799,3.24833456,229.73,229.71,4.3532]
[1732686402987,20.0,229.75,229.69,4.3536]
[1732686403479,3.24814311,229.74,229.69,4.3536]
[1732686404277,3.24814311,229.73,229.69,4.3536]
[1732686404481,20.0,229.75,229.69,4.3536]
[1732686404785,3.24785441,229.74,229.69,4.3536]
[1732686404970,3.24785441,229.73,229.69,4.3536]
[1732686405164,20.0,229.75,229.69,4.3536]
[1732686405360,3.24763379,229.74,229.69,4.3536]
[1732686405557,3.24763379,229.73,229.69,4.3536]
[1732686405781,20.0,229.75,229.68,13.06115958]
[1732686406089,3.24763637,229.74,229.68,13.06115958]
[1732686406288,3.24763637,229.73,229.68,4.3538]
[1732686406466,20.0,229.75,229.63,10.8868]
[1732686406467,8.70735958,229.7,229.63,10.8868]
[1732686406789,20.0,229.65,229.6,16.0537]
[1732686407480,3.24338528,229.64,229.6,16.0537]
[1732686407667,3.24338528,229.64,229.54,10.8911]
[1732686407668,17.13914231,229.64,229.56,4.356]
[1732686408069,3.24338528,229.63,229.56,4.356]
[1732686408581,20.0,229.59,229.54,15.6375]
[1732686408793,20.0,229.59,229.54,19.9939]
[1732686408960,20.0,229.59,229.51,8.70735958]
[1732686409159,20.0,229.57,229.52,4.3567]
[1732686410067,8.70735958,229.6,229.52,4.3567]
[1732686410373,20.0,229.57,229.52,4.3567]
[1732686410976,8.70735958,229.6,229.52,4.3567]
[1732686411185,20.0,229.57,229.52,4.3567]
[1732686411676,20.0,229.57,229.51,8.70735958]
[1732686411997,20.0,229.57,229.51,13.06435958]
[1732686412198,20.0,229.57,229.51,4.357]
[1732686412997,20.0,229.51,229.45,4.8219803]
[1732686414190,20.0,229.51,229.45,0.4639803]
[1732686414492,8.70735958,229.5,229.45,0.4639803]
[1732686418477,8.70735958,229.48,229.45,0.4639803]
[1732686418784,20.0,229.46,229.45,0.4639803]
[1732686419866,3.88244248,229.53,229.45,13.52943988]
[1732686420068,20.0,229.5,229.45,13.52943988]
[1732686420293,20.0,229.5,229.45,4.8220803]
[1732686421792,3.88244248,229.53,229.45,4.8220803]
[1732686422002,20.0,229.5,229.45,4.8220803]
[1732686425692,3.88244248,229.53,229.45,4.8220803]
[1732686425693,8.70735958,229.49,229.45,4.8220803]
[1732686426807,8.70735958,229.51,229.45,4.8220803]
[1732686427904,6.73875468,229.61,229.45,4.8220803]
[1732686427905,8.70735958,229.54,229.45,13.52943988]
[1732686428086,8.70735958,229.54,229.47,8.70735958]
[1732686429880,8.70735958,229.56,229.48,20.4922]
[1732686431280,8.70735958,229.56,229.49,8.70735958]
[1732686431894,8.70735958,229.58,229.5,4.3572]
[1732686432822,8.70735958,229.56,229.5,4.3572]
[1732686433006,20.0,229.51,229.48,16.1346]
[1732686433182,8.70735958,229.52,229.48,16.1346]
[1732686438282,0.04773889,229.58,229.49,4.3574]
[1732686438484,8.70735958,229.57,229.49,4.3574]
[1732686441005,8.70735958,229.55,229.49,4.3574]
[1732686441199,8.70735958,229.53,229.49,4.3574]
[1732686441889,8.70735958,229.53,229.48,16.1346]
[1732686442217,20.0,229.5,229.48,16.1346]
[1732686443023,0.04773889,229.58,229.48,20.4921]
[1732686443321,8.70735958,229.55,229.48,29.19945958]
[1732686444002,8.70735958,229.57,229.48,29.19945958]
[1732686444717,7.55960956,229.57,229.48,29.19945958]
[1732686444922,8.70735958,229.55,229.48,29.19945958]
[1732686446017,8.70735958,229.57,229.49,8.70735958]
[1732686446505,8.70735958,229.56,229.48,40.09355958]
[1732686447521,8.70735958,229.55,229.48,31.3862]
[1732686448626,8.70735958,229.56,229.48,40.09355958]
[1732686453214,3.24237263,229.55,229.48,40.09355958]
[1732686453410,8.70735958,229.56,229.48,40.09355958]
[1732686453712,8.70735958,229.55,229.48,40.09355958]
[1732686454299,8.70735958,229.56,229.48,40.09355958]
[1732686454702,5.16954519,229.61,229.54,8.70735958]
[1732686454916,8.70735958,229.63,229.55,8.70735958]
[1732686455100,8.70735958,229.63,229.56,22.2511]
[1732686455297,3.24358287,229.62,229.57,8.70735958]
[1732686455503,8.70735958,229.64,229.56,30.95845958]
[1732686455723,3.2407994,229.63,229.56,30.95845958]
[1732686456123,3.2407994,229.63,229.57,4.3559]
[1732686456330,8.70735958,229.64,229.57,4.3559]
[1732686458108,8.70735958,229.65,229.57,15.2458]
[1732686458301,8.70735958,229.65,229.58,8.70735958]
[1732686459314,8.70735958,229.65,229.59,4.3555]
[1732686463637,8.70735958,229.65,229.58,4.3557]
[1732686466937,5.16869919,229.7,229.58,15.2451]
[1732686467121,28.70735958,229.67,229.59,8.70735958]
[1732686467937,28.70735958,229.67,229.6,4.3554]
[1732686471744,0.8704,229.76,229.63,8.70735958]
[1732686471918,9.26703961,229.76,229.63,8.70735958]
[1732686472239,8.70735958,229.72,229.64,4.3546]
[1732686472734,8.70735958,229.72,229.65,8.70735958]
[1732686473639,8.70735958,229.72,229.64,15.2412]
[1732686473820,8.70735958,229.7,229.64,4.3546]
[1732686475444,8.70735958,229.72,229.64,4.3546]
[1732686475939,8.70735958,229.72,229.64,8.70735958]
[1732686476522,8.70735958,229.72,229.63,4.3548]
[1732686476724,8.70735958,229.72,229.63,13.06215958]
[1732686477343,8.70735958,229.72,229.63,23.94915958]
[1732686482251,6.03166399,229.79,229.65,23.94785958]
[1732686482549,8.70735958,229.73,229.65,23.94785958]
[1732686484043,5.16136399,229.79,229.65,23.94785958]
[1732686484356,8.70735958,229.75,229.67,8.70735958]
[1732686484958,8.70735958,229.71,229.65,4.3544]
[1732686485756,8.70735958,229.69,229.65,4.3544]
[1732686485936,8.70735958,229.67,229.64,15.9394]
[1732686486253,8.70735958,229.67,229.64,20.294]
[1732686486626,8.70735958,229.67,229.64,15.9394]
[1732686492136,8.70735958,229.67,229.58,16.6001]
[1732686492343,8.70735958,229.63,229.58,16.6001]
[1732686493766,8.70735958,229.63,229.59,4.3555]
[1732686493938,8.70735958,229.65,229.59,4.3555]
[1732686496690,8.70735958,229.67,229.6,8.70735958]
[1732686497671,8.70735958,229.69,229.62,8.70735958]
[1732686497843,8.70735958,229.7,229.62,8.70735958]
[1732686498043,3.23850461,229.69,229.62,8.70735958]
[1732686498245,8.70735958,229.7,229.62,8.70735958]
[1732686498453,3.24015363,229.68,229.62,8.70735958]
[1732686498663,8.70735958,229.7,229.63,4.3548]
[1732686498972,3.24030664,229.69,229.63,4.3548]
[1732686499359,3.24030664,229.68,229.63,4.3548]
[1732686499557,3.24030664,229.67,229.63,4.3548]
[1732686499762,8.70735958,229.7,229.63,4.3548]
[1732686500071,3.24219034,229.69,229.63,4.3548]
[1732686500247,3.24219034,229.68,229.63,4.3548]
[1732686500450,3.24219034,229.67,229.63,4.3548]
[1732686500661,3.24219034,229.69,229.63,4.3548]
[1732686500858,3.24219034,229.68,229.63,4.3548]
[1732686501062,13.89486412,229.7,229.63,4.3548]
[1732686501063,3.24219034,229.67,229.63,4.3548]
[1732686501244,8.70735958,229.7,229.63,4.3548]
[1732686501567,3.24314088,229.69,229.63,4.3548]
[1732686501872,3.24314088,229.68,229.63,4.3548]
[1732686502168,3.24314088,229.67,229.63,4.3548]
[1732686502366,8.70735958,229.7,229.63,4.3548]
[1732686502664,3.2432411,229.69,229.63,4.3548]
[1732686502868,3.2432411,229.69,229.63,13.06215958]
[1732686503066,3.2432411,229.68,229.64,22.3964]
[1732686503451,8.70735958,229.72,229.64,22.3964]
[1732686503452,3.2432411,229.67,229.64,22.3964]
[1732686503856,8.70735958,229.72,229.64,22.3964]
[1732686504265,3.24362229,229.71,229.65,4.3544]
[1732686504466,3.24362229,229.7,229.65,4.3544]
[1732686504869,3.24362229,229.7,229.65,23.94785958]
[1732686505075,8.70735958,229.74,229.65,23.94785958]
[1732686505268,3.24375393,229.73,229.65,23.94785958]
[1732686505654,3.24375393,229.72,229.67,8.70735958]
[1732686505878,3.24375393,229.71,229.67,8.70735958]
[1732686506176,3.24375393,229.7,229.68,4.3538]
[1732686506477,8.70735958,229.74,229.68,4.3538]
[1732686506679,3.24342225,229.73,229.68,4.3538]
[1732686506862,3.24342225,229.72,229.68,4.3538]
[1732686507061,11.95078183,229.71,229.64,22.3964]
[1732686507277,8.70735958,229.69,229.64,26.751]
[1732686507670,3.24342225,229.68,229.64,26.751]
[1732686508471,3.24342225,229.68,229.64,16.0505]
[1732686508674,20.0,229.65,229.64,16.0505]
[1732686508859,23.24342225,229.65,229.64,16.0505]
[1732686509377,3.24342225,229.65,229.6,4.3554]
[1732686509965,3.24342225,229.65,229.6,13.06275958]
[1732686511962,5.18983245,229.67,229.6,13.06275958]
[1732686512289,3.24561368,229.66,229.6,13.06275958]
[1732686512678,20.0,229.68,229.6,13.06275958]
[1732686512857,3.24638527,229.67,229.6,13.06275958]
[1732686513680,3.24638527,229.66,229.6,13.06275958]
[1732686513880,20.0,229.68,229.6,13.06275958]
[1732686514077,3.24555644,229.67,229.6,13.06275958]
[1732686514283,3.24555644,229.66,229.6,13.06275958]
[1732686514481,20.0,229.68,229.6,13.06275958]
[1732686514784,3.24560562,229.67,229.6,13.06275958]
[1732686515565,3.24560562,229.67,229.62,8.70735958]
[1732686516063,20.0,229.7,229.62,8.70735958]
[1732686516258,3.24651077,229.69,229.62,8.70735958]
[1732686516459,3.24651077,229.68,229.62,8.70735958]
[1732686516679,20.0,229.7,229.62,8.70735958]
[1732686516987,3.24663674,229.69,229.63,4.3548]
[1732686517480,3.24663674,229.68,229.63,13.06215958]
[1732686517692,3.24663674,229.67,229.63,13.06215958]
[1732686517872,5.19461816,229.69,229.63,13.06215958]
[1732686518074,3.24663671,229.68,229.63,13.06215958]
[1732686519082,3.24663671,229.68,229.6,15.2439]
[1732686519493,3.24663671,229.67,229.6,23.95125958]
[1732686519662,3.24663671,229.66,229.6,23.95125958]
[1732686519863,13.90197774,229.69,229.6,23.95125958]
[1732686519864,3.24663671,229.68,229.6,23.95125958]
[1732686520182,13.90197774,229.69,229.6,23.95125958]
[1732686520183,3.24670226,229.67,229.6,23.95125958]
[1732686520489,3.24670226,229.66,229.6,15.2439]
[1732686523687,3.24670226,229.65,229.6,15.2439]
[1732686523993,13.90197774,229.69,229.61,8.70735958]
[1732686524162,3.24716369,229.68,229.61,8.70735958]
[1732686524365,3.24716369,229.67,229.61,8.70735958]
[1732686524673,3.24716369,229.66,229.61,8.70735958]
[1732686524872,3.24739754,229.65,229.61,8.70735958]
[1732686525076,13.90197774,229.69,229.61,8.70735958]
[1732686525384,3.24737636,229.68,229.62,4.355]
[1732686525577,3.24737636,229.67,229.62,4.355]
[1732686525771,3.24737636,229.66,229.62,4.355]
[1732686525963,13.90197774,229.69,229.62,4.355]
[1732686526166,3.24750902,229.68,229.62,4.355]
[1732686526373,3.24750902,229.67,229.62,4.355]
[1732686526573,3.24750902,229.66,229.62,4.355]
[1732686526786,13.90197774,229.69,229.62,4.355]
[1732686526990,3.24780106,229.68,229.62,4.355]
[1732686527379,13.90197774,229.69,229.62,4.355]
[1732686527380,3.24780106,229.67,229.62,4.355]
[1732686527580,3.24780106,229.66,229.62,4.355]
[1732686527788,3.24780106,229.65,229.62,4.355]
[1732686528098,5.19660598,229.68,229.62,4.355]
[1732686528277,3.24789321,229.67,229.62,4.355]
[1732686528983,3.24789321,229.66,229.62,4.355]
[1732686529177,3.24789321,229.65,229.62,4.355]
[1732686529371,3.24789321,229.68,229.62,4.355]
[1732686529574,3.24892639,229.67,229.62,4.355]
[1732686529778,3.24892639,229.66,229.62,4.355]
[1732686529975,3.24892639,229.65,229.62,4.355]
[1732686530181,13.90396556,229.69,229.62,4.355]
[1732686530423,3.24893048,229.68,229.62,4.355]
[1732686530613,3.24893048,229.67,229.62,4.355]
[1732686530803,3.24893048,229.66,229.62,4.355]
[1732686530991,3.24893048,229.65,229.62,4.355]
[1732686531300,13.90396556,229.69,229.62,4.355]
[1732686531477,3.24927905,229.68,229.62,4.355]
[1732686531675,3.24927905,229.67,229.62,4.355]
[1732686531997,3.24927905,229.66,229.62,4.355]
[1732686532197,3.24927905,229.65,229.62,4.355]
[1732686532404,13.90396556,229.69,229.62,4.355]
[1732686532699,3.24879977,229.68,229.62,4.355]
[1732686533001,3.24918019,229.67,229.62,4.355]
[1732686533190,3.24918019,229.66,229.62,4.355]
[1732686533382,3.24918019,229.65,229.62,4.355]
[1732686533595,13.90604789,229.69,229.62,4.355]
[1732686533780,3.24913725,229.68,229.62,4.355]
[1732686534094,3.24913725,229.67,229.62,4.355]
[1732686534307,3.24913725,229.66,229.62,4.355]
[1732686534597,3.24913725,229.65,229.62,4.355]
[1732686534777,13.90604789,229.69,229.62,4.355]
[1732686534983,3.24909706,229.68,229.62,4.355]
[1732686535292,3.24909706,229.67,229.62,4.355]
[1732686535493,3.24909706,229.66,229.62,4.355]
[1732686535689,3.24909706,229.65,229.62,4.355]
[1732686535998,3.24909706,229.64,229.62,4.355]
[1732686536175,5.19868831,229.68,229.62,4.355]
[1732686536382,3.24913651,229.67,229.62,4.355]
[1732686536581,3.24913651,229.66,229.62,4.355]
[1732686536897,3.24913651,229.65,229.62,4.355]
[1732686537196,8.70735958,229.69,229.62,4.355]
[1732686537399,3.24949819,229.68,229.62,4.355]
[1732686537572,3.24949819,229.67,229.63,8.70735958]
[1732686537997,20.0,229.7,229.65,8.70735958]
[1732686538205,3.24961347,229.69,229.65,8.70735958]
[1732686538382,3.24961347,229.68,229.65,8.70735958]
[1732686538697,20.0,229.7,229.65,8.70735958]
[1732686538907,3.24991595,229.69,229.65,8.70735958]
[1732686539074,3.24991595,229.68,229.65,8.70735958]
[1732686539394,20.0,229.7,229.66,4.3542]
[1732686539599,3.24993182,229.69,229.66,4.3542]
[1732686540107,3.24993182,229.68,229.66,4.3542]
[1732686540283,20.0,229.7,229.66,4.3542]
[1732686540599,3.24984387,229.69,229.67,8.70735958]
[1732686540898,15.51585499,229.75,229.67,8.70735958]
[1732686541085,3.24942908,229.74,229.67,8.70735958]
[1732686541283,3.24942908,229.73,229.68,4.3538]
[1732686541495,3.24942908,229.72,229.68,4.3538]
[1732686541699,3.24942908,229.71,229.68,4.3538]
[1732686541906,3.24942908,229.7,229.68,4.3538]
[1732686542081,3.24942908,229.69,229.68,4.3538]
[1732686542285,28.70735958,229.7,229.64,16.0369]
[1732686542505,3.24942908,229.69,229.64,20.3915]
[1732686542702,3.2486257,229.68,229.64,29.09885958]
[1732686542879,8.70735958,229.72,229.64,29.09885958]
[1732686543085,3.24881836,229.71,229.64,29.09885958]
[1732686543293,3.24881836,229.7,229.64,29.09885958]
[1732686543494,8.70735958,229.74,229.66,8.70735958]
[1732686543695,3.24886438,229.73,229.66,8.70735958]
[1732686543906,3.24886438,229.72,229.66,8.70735958]
[1732686544087,3.24886438,229.71,229.66,8.70735958]
[1732686544282,8.70735958,229.74,229.66,8.70735958]
[1732686544605,3.2480196,229.73,229.66,8.70735958]
[1732686544788,3.2480196,229.72,229.66,8.70735958]
[1732686544987,3.2480196,229.71,229.66,8.70735958]
[1732686545431,8.70735958,229.74,229.67,4.354]
[1732686545701,3.24742979,229.73,229.67,4.354]
[1732686545893,3.24742979,229.72,229.67,4.354]
[1732686546205,3.24742979,229.71,229.67,4.354]
[1732686546411,8.70735958,229.74,229.67,4.354]
[1732686546704,3.24685294,229.73,229.67,4.354]
[1732686546898,3.24685294,229.72,229.67,4.354]
[1732686547203,3.24685294,229.71,229.67,4.354]
[1732686547404,8.70735958,229.74,229.67,4.354]
[1732686547606,3.24761212,229.73,229.67,4.354]
[1732686547808,3.24761212,229.72,229.67,4.354]
[1732686548006,3.24761212,229.71,229.67,4.354]
[1732686548188,8.70735958,229.74,229.67,4.354]
[1732686548388,3.24897611,229.73,229.67,4.354]
[1732686548590,3.24897611,229.72,229.67,4.354]
[1732686548803,3.24897611,229.71,229.67,4.354]
[1732686549119,8.70735958,229.74,229.67,4.354]
[1732686549407,3.24953147,229.73,229.67,4.354]
[1732686549597,3.24953147,229.72,229.67,4.354]
[1732686549994,3.24953147,229.71,229.65,4.3542]
[1732686550315,3.24854993,229.7,229.65,4.3542]
[1732686550487,8.70735958,229.72,229.65,4.3542]
[1732686550682,3.24853127,229.71,229.65,4.3542]
[1732686551115,3.24853127,229.7,229.65,4.3542]
[1732686551299,8.70735958,229.72,229.65,4.3542]
[1732686551499,3.2483288,229.71,229.65,4.3542]
[1732686552600,8.70735958,229.74,229.65,4.3542]
[1732686552802,3.24840737,229.73,229.65,4.3542]
[1732686553116,3.24840737,229.72,229.65,4.3542]
[1732686553297,3.24840737,229.72,229.66,8.70735958]
[1732686553610,20.0,229.74,229.66,8.70735958]
[1732686553791,3.2479421,229.73,229.66,8.70735958]
[1732686553993,3.2479421,229.73,229.67,4.354]
[1732686554212,3.2479421,229.72,229.68,8.70735958]
[1732686554512,8.70735958,229.76,229.68,8.70735958]
[1732686554720,3.24761997,229.75,229.67,4.354]
[1732686555013,3.24761997,229.74,229.67,13.06135958]
[1732686555206,3.24761997,229.73,229.67,13.06135958]
[1732686555408,8.70735958,229.76,229.67,13.06135958]
[1732686555719,3.24727162,229.75,229.67,13.06135958]
[1732686556014,3.24727162,229.74,229.67,13.06135958]
[1732686556310,3.24727162,229.73,229.67,13.06135958]
[1732686556514,8.70735958,229.76,229.67,13.06135958]
[1732686556705,3.24778314,229.75,229.67,13.06135958]
[1732686558310,3.24778314,229.74,229.67,13.06135958]
[1732686559405,8.70735958,229.73,229.67,4.354]
[1732686560210,8.70735958,229.73,229.66,10.3948]
[1732686560211,3.24818967,229.72,229.66,10.3948]
[1732686561612,8.70735958,229.71,229.65,4.3544]
[1732686561815,3.24818967,229.7,229.65,4.3544]
[1732686562697,8.70735958,229.69,229.64,16.0369]
[1732686563107,3.24794645,229.68,229.64,16.0369]
[1732686563504,3.24790074,229.67,229.64,16.0369]
[1732686563720,8.70735958,229.69,229.64,16.0369]
[1732686564224,3.24787718,229.68,229.64,16.0369]
[1732686564601,3.24787718,229.68,229.63,4.3546]
[1732686564804,3.24787718,229.68,229.62,4.355]
[1732686566906,11.95523676,229.68,229.62,4.355]
[1732686567105,3.24822146,229.67,229.61,6.4877]
[1732686567421,3.24822146,229.67,229.61,4.3551]
[1732686567422,8.70735958,229.66,229.61,4.3551]
[1732686567807,8.70735958,229.65,229.61,4.3551]
[1732686568207,8.70735958,229.67,229.59,8.70735958]
[1732686568520,3.24823195,229.66,229.59,8.70735958]
[1732686569327,3.24823195,229.66,229.6,4.3554]
[1732686570796,3.24823195,229.66,229.57,10.8896]
[1732686571003,8.70735958,229.65,229.57,19.59695958]
[1732686572115,8.70735958,229.65,229.57,23.95285958]
[1732686572300,8.70735958,229.67,229.59,8.70735958]
[1732686572497,3.24765201,229.66,229.59,8.70735958]
[1732686573208,20.0,229.57,229.53,15.4071]
[1732686573430,20.0,229.57,229.51,4.357]
[1732686573904,8.70735958,229.56,229.49,4.3573]
[1732686574102,8.70735958,229.56,229.49,13.06465958]
[1732686575108,0.871,229.61,229.5,8.70735958]
[1732686575310,8.70735958,229.57,229.5,8.70735958]
[1732686575515,8.70735958,229.56,229.49,13.06465958]
[1732686576721,8.70735958,229.55,229.48,28.47205958]
[1732686579118,8.70735958,229.55,229.48,19.7647]
[1732686579424,8.70735958,229.53,229.48,15.4071]
[1732686579923,8.70735958,229.52,229.48,19.7647]
[1732686580121,8.70735958,229.53,229.48,19.7647]
[1732686580430,8.70735958,229.52,229.48,19.7647]
[1732686580606,8.70735958,229.53,229.48,19.7647]
[1732686584718,8.70735958,229.51,229.46,6.4877]
[1732686584927,8.70735958,229.52,229.46,6.4877]
[1732686585333,6.0359519,229.59,229.45,4.8219803]
[1732686585334,8.70735958,229.5,229.45,4.8219803]
[1732686585630,8.70735958,229.49,229.45,4.8219803]
[1732686586033,8.70735958,229.47,229.45,0.4639803]
[1732686587041,8.70735958,229.46,229.45,0.4639803]
[1732686588811,9.57895958,229.46,229.45,0.4639803]
[1732686589843,8.70735958,229.46,229.45,0.4639803]
[1732686591631,8.70735958,229.47,229.45,0.4639803]
[1732686593732,8.70735958,229.46,229.45,0.4639803]
[1732686598820,9.57895958,229.46,229.45,0.4639803]
[1732686600317,44.4083979,229.46,229.45,0.4639803]
[1732686600518,44.4083979,229.46,229.34,15.6897]
[1732686600519,20.0,229.43,229.34,15.6897]
[1732686600836,8.70735958,229.36,229.34,15.6897]
[1732686601222,8.70735958,229.36,229.29,20.0508]
[1732686601553,8.70735958,229.36,229.29,28.75815958]